[Event "*** Titled Tuesday Blitz"]
[Site "Chess.com"]
[Date "2019.02.05"]
[Round "2"]
[White "WhiteKnight2612"]
[Black "jlucasvf"]
[Result "1/2-1/2"]
[WhiteElo "2548"]
[BlackElo "2731"]
[TimeControl "180+2"]
[EndTime "13:20:16 PST"]
[Termination "Game drawn by agreement"]

1. Nf3 {[%clk 0:03:01.9]} 1... d5 {[%clk 0:03:00.7]} 2. g3 {[%clk 0:03:03.1]}
2... Nf6 {[%clk 0:03:00.9]} 3. Bg2 {[%clk 0:03:04.2]} 3... e6 {[%clk 0:03:02.3]}
4. O-O {[%clk 0:03:05.3]} 4... Be7 {[%clk 0:03:04]} 5. d4 {[%clk 0:03:06.2]}
5... O-O {[%clk 0:03:05.9]} 6. c4 {[%clk 0:03:07.2]} 6... dxc4 {[%clk
0:03:07.8]} 7. Ne5 {[%clk 0:03:05.2]} 7... Nc6 {[%clk 0:03:08.6]} 8. Nxc6 {[%clk
0:02:58.5]} 8... bxc6 {[%clk 0:03:10.5]} 9. e3 {[%clk 0:02:47.8]} 9... Rb8
{[%clk 0:03:08.7]} 10. Nc3 {[%clk 0:02:47]} 10... c5 {[%clk 0:03:08]} 11. dxc5
{[%clk 0:02:46.4]} 11... Bxc5 {[%clk 0:03:07.3]} 12. Qe2 {[%clk 0:02:47.1]}
12... Ba6 {[%clk 0:03:01.7]} 13. Rd1 {[%clk 0:02:45]} 13... Qe7 {[%clk
0:03:02.1]} 14. e4 {[%clk 0:02:46]} 14... Nd7 {[%clk 0:02:39.7]} 15. e5 {[%clk
0:02:41.7]} 15... Nb6 {[%clk 0:02:28.2]} 16. Qh5 {[%clk 0:02:31.2]} 16... Bb7
{[%clk 0:02:01]} 17. Bg5 {[%clk 0:02:23.4]} 17... f6 {[%clk 0:01:58.3]} 18. exf6
{[%clk 0:02:20.9]} 18... gxf6 {[%clk 0:02:00.2]} 19. Bh6 {[%clk 0:02:19.6]}
19... Rfe8 {[%clk 0:01:59.6]} 20. Ne4 {[%clk 0:01:55.7]} 20... Bxe4 {[%clk
0:02:00.5]} 21. Bxe4 {[%clk 0:01:56.5]} 21... f5 {[%clk 0:02:01.6]} 22. Bc6
{[%clk 0:01:54.7]} 22... Red8 {[%clk 0:01:46.9]} 23. Bf4 {[%clk 0:01:34.3]}
23... Rxd1+ {[%clk 0:01:35.5]} 24. Rxd1 {[%clk 0:01:34.4]} 24... Bd6 {[%clk
0:01:37]} 25. Bg5 {[%clk 0:01:28.6]} 25... Qf7 {[%clk 0:01:36.9]} 26. Qh4 {[%clk
0:01:29.6]} 26... Qg6 {[%clk 0:01:28.2]} 27. Bf3 {[%clk 0:01:24.7]} 27... Nd7
{[%clk 0:01:24.9]} 28. Qxc4 {[%clk 0:01:18.4]} 28... Ne5 {[%clk 0:01:26.3]} 29.
Qf4 {[%clk 0:01:06.5]} 29... Qxg5 {[%clk 0:01:20.2]} 1/2-1/2

[Event "*** Titled Tuesday Blitz"]
[Site "Chess.com"]
[Date "2019.02.05"]
[Round "2"]
[White "Kouzari"]
[Black "Polish_fighter3000"]
[Result "0-1"]
[WhiteElo "2602"]
[BlackElo "3017"]
[TimeControl "180+2"]
[EndTime "13:20:24 PST"]
[Termination "Polish_fighter3000 won by resignation"]

1. d4 {[%clk 0:03:01.9]} 1... Nf6 {[%clk 0:03:00.2]} 2. c4 {[%clk 0:03:03.3]}
2... g6 {[%clk 0:03:01.6]} 3. Nc3 {[%clk 0:03:04.6]} 3... d5 {[%clk 0:03:03.2]}
4. Bg5 {[%clk 0:03:04.9]} 4... Bg7 {[%clk 0:03:03.8]} 5. Bxf6 {[%clk 0:03:06]}
5... Bxf6 {[%clk 0:03:05.7]} 6. cxd5 {[%clk 0:03:07.5]} 6... c5 {[%clk
0:03:07.2]} 7. Nf3 {[%clk 0:03:07.5]} 7... cxd4 {[%clk 0:03:06.6]} 8. Nxd4
{[%clk 0:03:08.3]} 8... Qb6 {[%clk 0:03:08.1]} 9. Nb3 {[%clk 0:03:05.7]} 9...
O-O {[%clk 0:03:05.9]} 10. Qd2 {[%clk 0:03:05.9]} 10... Na6 {[%clk 0:02:19.1]}
11. e4 {[%clk 0:02:54.9]} 11... Rd8 {[%clk 0:02:17.1]} 12. f4 {[%clk 0:02:32.2]}
12... Bg7 {[%clk 0:01:57.8]} 13. O-O-O {[%clk 0:02:21.5]} 13... Bd7 {[%clk
0:01:33.2]} 14. Kb1 {[%clk 0:02:14.9]} 14... Rac8 {[%clk 0:01:34.3]} 15. Rc1
{[%clk 0:02:15.7]} 15... Nb4 {[%clk 0:01:20.5]} 16. a3 {[%clk 0:01:58.9]} 16...
Na6 {[%clk 0:01:21.4]} 17. Ka2 {[%clk 0:01:54.5]} 17... e6 {[%clk 0:01:17.9]}
18. e5 {[%clk 0:01:46.4]} 18... Nc5 {[%clk 0:00:55]} 19. Nxc5 {[%clk 0:01:39.1]}
19... Qxc5 {[%clk 0:00:56.9]} 20. d6 {[%clk 0:01:36.7]} 20... Bh6 {[%clk
0:00:58]} 21. Rd1 {[%clk 0:01:08.4]} 21... Bc6 {[%clk 0:00:58.1]} 22. Bd3 {[%clk
0:01:05.4]} 22... b5 {[%clk 0:00:58.7]} 23. Ne4 {[%clk 0:01:01.3]} 23... Bxe4
{[%clk 0:00:59.1]} 24. Bxe4 {[%clk 0:00:59.6]} 24... Qc4+ {[%clk 0:01:00.5]} 25.
Kb1 {[%clk 0:01:00.9]} 25... Qxe4+ {[%clk 0:01:02.4]} 26. Ka2 {[%clk 0:01:01.5]}
26... Bxf4 {[%clk 0:01:03.3]} 0-1

[Event "*** Titled Tuesday Blitz"]
[Site "Chess.com"]
[Date "2019.02.05"]
[Round "2"]
[White "SergioGarciaFuentes"]
[Black "minnesotachessmaster"]
[Result "1/2-1/2"]
[WhiteElo "1975"]
[BlackElo "2003"]
[TimeControl "180+2"]
[EndTime "13:20:29 PST"]
[Termination "Game drawn by repetition"]

1. Nf3 {[%clk 0:03:01.9]} 1... Nf6 {[%clk 0:03:00]} 2. g3 {[%clk 0:03:02.5]}
2... g6 {[%clk 0:03:01]} 3. b3 {[%clk 0:03:03.2]} 3... Bg7 {[%clk 0:03:02.1]} 4.
Bb2 {[%clk 0:03:04]} 4... O-O {[%clk 0:03:03.2]} 5. Bg2 {[%clk 0:03:05]} 5... d6
{[%clk 0:03:04]} 6. d4 {[%clk 0:03:05.4]} 6... Nbd7 {[%clk 0:03:03.8]} 7. Nbd2
{[%clk 0:03:05.7]} 7... c5 {[%clk 0:03:03]} 8. c4 {[%clk 0:03:05.3]} 8... Rb8
{[%clk 0:02:59]} 9. O-O {[%clk 0:02:56.4]} 9... b6 {[%clk 0:02:58.7]} 10. Re1
{[%clk 0:02:43.7]} 10... Bb7 {[%clk 0:02:58.5]} 11. d5 {[%clk 0:02:43.7]} 11...
b5 {[%clk 0:02:55.6]} 12. e4 {[%clk 0:02:41.7]} 12... a6 {[%clk 0:02:46]} 13.
Rc1 {[%clk 0:02:32.7]} 13... Ng4 {[%clk 0:02:45.5]} 14. Bxg7 {[%clk 0:02:31.3]}
14... Kxg7 {[%clk 0:02:46.1]} 15. Qc2 {[%clk 0:02:27.3]} 15... Kg8 {[%clk
0:02:35.3]} 16. h3 {[%clk 0:02:24.9]} 16... Nge5 {[%clk 0:02:35.6]} 17. Nxe5
{[%clk 0:02:24.3]} 17... Nxe5 {[%clk 0:02:36.8]} 18. f4 {[%clk 0:02:20.1]} 18...
Nd7 {[%clk 0:02:37.9]} 19. Qc3 {[%clk 0:02:05]} 19... e5 {[%clk 0:02:27.9]} 20.
f5 {[%clk 0:01:59]} 20... f6 {[%clk 0:02:13.3]} 21. fxg6 {[%clk 0:01:55.4]}
21... hxg6 {[%clk 0:02:14.1]} 22. Rf1 {[%clk 0:01:56.7]} 22... Kg7 {[%clk
0:02:13]} 23. Rf2 {[%clk 0:01:57]} 23... Rf7 {[%clk 0:02:04.7]} 24. Rcf1 {[%clk
0:01:57.3]} 24... Qe7 {[%clk 0:01:51.4]} 25. h4 {[%clk 0:01:49.7]} 25... b4
{[%clk 0:01:48.6]} 26. Qe3 {[%clk 0:01:48.5]} 26... Rh8 {[%clk 0:01:45.6]} 27.
Rf3 {[%clk 0:01:41.6]} 27... Nb6 {[%clk 0:01:41.1]} 28. R1f2 {[%clk 0:01:41.3]}
28... Bc8 {[%clk 0:01:41.8]} 29. Rf1 {[%clk 0:01:29.5]} 29... Bg4 {[%clk
0:01:41.3]} 30. R3f2 {[%clk 0:01:28.8]} 30... a5 {[%clk 0:01:40.6]} 31. Nf3
{[%clk 0:01:29.1]} 31... a4 {[%clk 0:01:23.8]} 32. Nh2 {[%clk 0:01:29.3]} 32...
Bd7 {[%clk 0:01:22.4]} 33. Bf3 {[%clk 0:01:21.7]} 33... Bh3 {[%clk 0:01:18.8]}
34. Bg2 {[%clk 0:01:16.6]} 34... Bd7 {[%clk 0:01:19.5]} 35. Bf3 {[%clk
0:01:17.4]} 35... Bh3 {[%clk 0:01:20.2]} 36. Bg2 {[%clk 0:01:18.3]} 36... Bd7
{[%clk 0:01:20.6]} 37. Bf3 {[%clk 0:01:19.5]} 1/2-1/2

[Event "*** Titled Tuesday Blitz"]
[Site "Chess.com"]
[Date "2019.02.05"]
[Round "2"]
[White "JosefineHeinemann"]
[Black "Muracle"]
[Result "1/2-1/2"]
[WhiteElo "2420"]
[BlackElo "2519"]
[TimeControl "180+2"]
[EndTime "13:20:33 PST"]
[Termination "Game drawn by repetition"]

1. e4 {[%clk 0:03:01.9]} 1... c6 {[%clk 0:02:59.1]} 2. d4 {[%clk 0:03:02.4]}
2... d5 {[%clk 0:03:00]} 3. e5 {[%clk 0:03:03.8]} 3... Bf5 {[%clk 0:03:01]} 4.
Nf3 {[%clk 0:03:04.6]} 4... e6 {[%clk 0:03:00.8]} 5. Be2 {[%clk 0:03:05.1]} 5...
c5 {[%clk 0:03:01.5]} 6. Be3 {[%clk 0:03:05.8]} 6... Nc6 {[%clk 0:03:02]} 7. O-O
{[%clk 0:03:04]} 7... Bg6 {[%clk 0:03:02.6]} 8. Bb5 {[%clk 0:02:55.5]} 8... Nh6
{[%clk 0:03:00]} 9. c4 {[%clk 0:02:47.4]} 9... dxc4 {[%clk 0:02:53.2]} 10. Nc3
{[%clk 0:02:45.6]} 10... Bd3 {[%clk 0:02:49.2]} 11. Re1 {[%clk 0:02:43.9]} 11...
Nf5 {[%clk 0:02:49.1]} 12. Bxc6+ {[%clk 0:02:24.1]} 12... bxc6 {[%clk
0:02:46.4]} 13. dxc5 {[%clk 0:02:21.3]} 13... Nxe3 {[%clk 0:02:45.7]} 14. fxe3
{[%clk 0:02:23.2]} 14... Bxc5 {[%clk 0:02:45.7]} 15. b3 {[%clk 0:02:20.8]} 15...
O-O {[%clk 0:02:43]} 16. bxc4 {[%clk 0:02:20.5]} 16... Bxc4 {[%clk 0:02:43.4]}
17. Ne4 {[%clk 0:02:17]} 17... Bb4 {[%clk 0:02:32]} 18. Qxd8 {[%clk 0:02:14.3]}
18... Rfxd8 {[%clk 0:02:31.9]} 19. Rec1 {[%clk 0:02:15.8]} 19... Bd5 {[%clk
0:02:30.7]} 20. Nc3 {[%clk 0:02:12.7]} 20... Bxf3 {[%clk 0:02:27.3]} 21. gxf3
{[%clk 0:02:13.1]} 21... Rd3 {[%clk 0:02:27.1]} 22. Ne4 {[%clk 0:02:02.4]} 22...
Rxe3 {[%clk 0:02:26.5]} 23. Kf2 {[%clk 0:02:03.5]} 23... Rd3 {[%clk 0:02:20.1]}
24. Rxc6 {[%clk 0:02:03.9]} 24... h6 {[%clk 0:02:16.9]} 25. Rc7 {[%clk
0:01:59.9]} 25... Ba5 {[%clk 0:01:59.4]} 26. Rb7 {[%clk 0:01:57.5]} 26... Bb6+
{[%clk 0:01:59.5]} 27. Kg3 {[%clk 0:01:57.8]} 27... Bd4 {[%clk 0:01:59.5]} 28.
Rc1 {[%clk 0:01:56.2]} 28... Bxe5+ {[%clk 0:01:59.9]} 29. Kg2 {[%clk 0:01:55.8]}
29... Bf4 {[%clk 0:01:57]} 30. Rc6 {[%clk 0:01:52.5]} 30... Rad8 {[%clk
0:01:48.7]} 31. Rxa7 {[%clk 0:01:51.8]} 31... f5 {[%clk 0:01:48.4]} 32. Nf2
{[%clk 0:01:49]} 32... Rd2 {[%clk 0:01:48.2]} 33. Rxe6 {[%clk 0:01:49.9]} 33...
Rb2 {[%clk 0:01:34.9]} 34. Ree7 {[%clk 0:01:47.5]} 34... g6 {[%clk 0:01:14.6]}
35. Rg7+ {[%clk 0:01:47]} 35... Kh8 {[%clk 0:01:15.8]} 36. Rh7+ {[%clk
0:01:48.2]} 36... Kg8 {[%clk 0:01:17.1]} 37. Rag7+ {[%clk 0:01:49.2]} 37... Kf8
{[%clk 0:01:18.1]} 38. Rf7+ {[%clk 0:01:50.7]} 38... Kg8 {[%clk 0:01:18.9]} 39.
Rhg7+ {[%clk 0:01:49.1]} 39... Kh8 {[%clk 0:01:19.7]} 40. Rh7+ {[%clk
0:01:50.7]} 40... Kg8 {[%clk 0:01:20.6]} 41. Rhg7+ {[%clk 0:01:52.1]} 41... Kh8
{[%clk 0:01:21.7]} 42. Rh7+ {[%clk 0:01:53.6]} 42... Kg8 {[%clk 0:01:22.8]} 43.
Rhg7+ {[%clk 0:01:55]} 43... Kh8 {[%clk 0:01:24]} 1/2-1/2

[Event "*** Titled Tuesday Blitz"]
[Site "Chess.com"]
[Date "2019.02.05"]
[Round "2"]
[White "GHANDEEVAM2003"]
[Black "in_shambles"]
[Result "1-0"]
[WhiteElo "2857"]
[BlackElo "2001"]
[TimeControl "180+2"]
[EndTime "13:20:34 PST"]
[Termination "GHANDEEVAM2003 won by resignation"]

1. Nf3 {[%clk 0:03:01.6]} 1... Nf6 {[%clk 0:03:00.4]} 2. c4 {[%clk 0:03:00.3]}
2... e6 {[%clk 0:02:59.4]} 3. g3 {[%clk 0:03:00.9]} 3... d5 {[%clk 0:03:00]} 4.
Bg2 {[%clk 0:03:02.8]} 4... Be7 {[%clk 0:02:59]} 5. O-O {[%clk 0:02:51.5]} 5...
O-O {[%clk 0:02:58.2]} 6. d4 {[%clk 0:02:52.7]} 6... dxc4 {[%clk 0:02:52.1]} 7.
Ne5 {[%clk 0:02:54]} 7... c6 {[%clk 0:02:27.2]} 8. Nxc4 {[%clk 0:02:46.6]} 8...
b5 {[%clk 0:02:26.4]} 9. Ne5 {[%clk 0:02:27.9]} 9... Bb7 {[%clk 0:02:26.9]} 10.
Nc3 {[%clk 0:02:27.7]} 10... Qc7 {[%clk 0:02:25.5]} 11. Bf4 {[%clk 0:02:27.9]}
11... Bd6 {[%clk 0:02:21.8]} 12. Rc1 {[%clk 0:02:28.6]} 12... a6 {[%clk
0:02:22]} 13. a4 {[%clk 0:02:22.4]} 13... b4 {[%clk 0:02:19]} 14. Ne4 {[%clk
0:02:23.4]} 14... Nxe4 {[%clk 0:02:19]} 15. Bxe4 {[%clk 0:02:25.3]} 15... Rc8
{[%clk 0:02:10.4]} 16. e3 {[%clk 0:02:22.6]} 16... f6 {[%clk 0:01:56.6]} 17. Nd3
{[%clk 0:02:22.4]} 17... Bxf4 {[%clk 0:01:52.6]} 18. Nxf4 {[%clk 0:02:24.3]}
18... Qd6 {[%clk 0:01:46.8]} 19. Qb3 {[%clk 0:02:20.1]} 19... Re8 {[%clk
0:01:29.9]} 20. Nd3 {[%clk 0:02:19.7]} 20... a5 {[%clk 0:01:18.7]} 21. Nc5
{[%clk 0:02:19.4]} 21... Ba6 {[%clk 0:01:13.3]} 22. Rfd1 {[%clk 0:02:19.9]}
22... Ra7 {[%clk 0:01:05.4]} 23. h4 {[%clk 0:02:12.3]} 23... Rc7 {[%clk
0:00:46.5]} 24. Kg2 {[%clk 0:02:10.8]} 24... Bc8 {[%clk 0:00:45.8]} 25. h5
{[%clk 0:02:07.9]} 25... Nd7 {[%clk 0:00:36.7]} 26. h6 {[%clk 0:02:04.4]} 26...
Nxc5 {[%clk 0:00:35.6]} 27. Rxc5 {[%clk 0:02:06.3]} 27... Kf8 {[%clk 0:00:18.2]}
28. Rxa5 {[%clk 0:02:05.4]} 28... f5 {[%clk 0:00:16.8]} 29. Bf3 {[%clk
0:02:04.9]} 29... gxh6 {[%clk 0:00:16.9]} 30. Rc5 {[%clk 0:02:06.2]} 30... Bd7
{[%clk 0:00:16.5]} 31. Qxb4 {[%clk 0:02:07.2]} 31... Kf7 {[%clk 0:00:14.6]} 32.
Rxf5+ {[%clk 0:02:07.8]} 1-0

[Event "*** Titled Tuesday Blitz"]
[Site "Chess.com"]
[Date "2019.02.05"]
[Round "2"]
[White "Marcus_Harvey"]
[Black "AbdAlAgathos"]
[Result "1-0"]
[WhiteElo "2719"]
[BlackElo "2321"]
[TimeControl "180+2"]
[EndTime "13:20:36 PST"]
[Termination "Marcus_Harvey won by resignation"]

1. Nf3 {[%clk 0:02:04.5]} 1... f5 {[%clk 0:02:57.4]} 2. g3 {[%clk 0:02:06.4]}
2... Nf6 {[%clk 0:02:58.1]} 3. Bg2 {[%clk 0:02:08.3]} 3... g6 {[%clk 0:02:59.5]}
4. O-O {[%clk 0:02:10.2]} 4... Bg7 {[%clk 0:03:00.7]} 5. d3 {[%clk 0:02:12.1]}
5... O-O {[%clk 0:03:02]} 6. Nbd2 {[%clk 0:02:14]} 6... Nc6 {[%clk 0:02:59.5]}
7. e4 {[%clk 0:02:15.9]} 7... d6 {[%clk 0:02:57.9]} 8. Re1 {[%clk 0:02:16.4]}
8... e5 {[%clk 0:02:57.8]} 9. Nc4 {[%clk 0:02:16.3]} 9... h6 {[%clk 0:02:52.3]}
10. c3 {[%clk 0:02:16.7]} 10... g5 {[%clk 0:02:36]} 11. exf5 {[%clk 0:02:15.7]}
11... Bxf5 {[%clk 0:02:36.9]} 12. d4 {[%clk 0:02:17]} 12... exd4 {[%clk
0:02:09.6]} 13. Nxd4 {[%clk 0:02:16.7]} 13... Bg4 {[%clk 0:01:58.5]} 14. Nxc6
{[%clk 0:02:06.1]} 14... bxc6 {[%clk 0:01:56.7]} 15. Qc2 {[%clk 0:02:00.2]}
15... Nd5 {[%clk 0:01:45.7]} 16. Ne3 {[%clk 0:01:59]} 16... Nxe3 {[%clk
0:01:33.5]} 17. Bxe3 {[%clk 0:02:00.9]} 17... Qd7 {[%clk 0:01:26]} 18. Qa4
{[%clk 0:01:56.6]} 18... Bf3 {[%clk 0:01:23.7]} 19. Rad1 {[%clk 0:01:49.3]}
19... a5 {[%clk 0:01:05.3]} 20. Bxf3 {[%clk 0:01:46.6]} 20... Rxf3 {[%clk
0:01:05.9]} 21. Rd2 {[%clk 0:01:43.7]} 21... Re8 {[%clk 0:00:35.2]} 22. Qxa5
{[%clk 0:01:40.2]} 22... c5 {[%clk 0:00:34.5]} 23. Qxc5 {[%clk 0:01:29.6]} 23...
Qe7 {[%clk 0:00:12]} 24. Qd5+ {[%clk 0:01:29.6]} 24... Kh8 {[%clk 0:00:12.8]}
25. Qxf3 {[%clk 0:01:29.9]} 1-0

[Event "*** Titled Tuesday Blitz"]
[Site "Chess.com"]
[Date "2019.02.05"]
[Round "2"]
[White "MrVezunchik"]
[Black "26andrej26"]
[Result "1-0"]
[WhiteElo "2688"]
[BlackElo "2418"]
[TimeControl "180+2"]
[EndTime "13:20:38 PST"]
[Termination "MrVezunchik won by resignation"]

1. c4 {[%clk 0:03:01.9]} 1... Nf6 {[%clk 0:02:58.7]} 2. Nc3 {[%clk 0:03:03]}
2... g6 {[%clk 0:02:59.4]} 3. g3 {[%clk 0:03:02.9]} 3... Bg7 {[%clk 0:03:00.1]}
4. Bg2 {[%clk 0:03:04.3]} 4... O-O {[%clk 0:03:01.5]} 5. d4 {[%clk 0:03:05.9]}
5... d6 {[%clk 0:03:02.9]} 6. Nf3 {[%clk 0:03:07.5]} 6... Nc6 {[%clk 0:03:04.3]}
7. O-O {[%clk 0:03:08.9]} 7... a6 {[%clk 0:03:05.9]} 8. d5 {[%clk 0:03:10]} 8...
Na5 {[%clk 0:03:06.9]} 9. b3 {[%clk 0:03:11.6]} 9... c5 {[%clk 0:03:07.9]} 10.
dxc6 {[%clk 0:03:13.5]} 10... Nxc6 {[%clk 0:03:07.2]} 11. Bb2 {[%clk 0:03:14.1]}
11... Qa5 {[%clk 0:03:08.3]} 12. Qc1 {[%clk 0:03:14.8]} 12... Qh5 {[%clk
0:03:07.1]} 13. Rd1 {[%clk 0:03:13.9]} 13... Bh3 {[%clk 0:03:04.9]} 14. Nd5
{[%clk 0:03:13.9]} 14... Bh6 {[%clk 0:02:27.2]} 15. Qc3 {[%clk 0:01:57.6]} 15...
Ne5 {[%clk 0:00:49.4]} 16. Nxe7+ {[%clk 0:01:52.4]} 16... Kg7 {[%clk 0:00:50.2]}
17. Nxe5 {[%clk 0:01:53.3]} 17... dxe5 {[%clk 0:00:50.5]} 18. Bxh3 {[%clk
0:01:38.5]} 18... Qxh3 {[%clk 0:00:51.4]} 19. Qxe5 {[%clk 0:01:39.2]} 19... Qe6
{[%clk 0:00:52.3]} 20. Nd5 {[%clk 0:01:08.5]} 20... Qxe5 {[%clk 0:00:35]} 21.
Bxe5 {[%clk 0:01:10.4]} 21... Bg5 {[%clk 0:00:34.3]} 22. h4 {[%clk 0:01:10.7]}
22... Rae8 {[%clk 0:00:35.3]} 23. hxg5 {[%clk 0:01:10.5]} 23... Rxe5 {[%clk
0:00:36.1]} 24. gxf6+ {[%clk 0:01:09.3]} 1-0

[Event "*** Titled Tuesday Blitz"]
[Site "Chess.com"]
[Date "2019.02.05"]
[Round "2"]
[White "MissingLife"]
[Black "kuli4ik"]
[Result "0-1"]
[WhiteElo "2458"]
[BlackElo "2837"]
[TimeControl "180+2"]
[EndTime "13:20:40 PST"]
[Termination "kuli4ik won by resignation"]

1. Nf3 {[%clk 0:03:01.9]} 1... g6 {[%clk 0:02:55.3]} 2. g3 {[%clk 0:03:02.7]}
2... Bg7 {[%clk 0:02:57.2]} 3. Bg2 {[%clk 0:03:04]} 3... d6 {[%clk 0:02:58.7]}
4. c4 {[%clk 0:03:05.4]} 4... a6 {[%clk 0:02:58.1]} 5. Nc3 {[%clk 0:03:06]} 5...
Nd7 {[%clk 0:02:58]} 6. O-O {[%clk 0:03:05.5]} 6... e6 {[%clk 0:02:59]} 7. b3
{[%clk 0:03:06.2]} 7... Ne7 {[%clk 0:02:59.1]} 8. Bb2 {[%clk 0:03:07]} 8... O-O
{[%clk 0:03:01]} 9. Qc2 {[%clk 0:03:07.9]} 9... h6 {[%clk 0:03:01.8]} 10. a3
{[%clk 0:03:04.2]} 10... Rb8 {[%clk 0:03:02.4]} 11. d4 {[%clk 0:03:05]} 11... b6
{[%clk 0:03:03.1]} 12. Rad1 {[%clk 0:03:03.8]} 12... Bb7 {[%clk 0:03:04.2]} 13.
b4 {[%clk 0:03:03.6]} 13... g5 {[%clk 0:03:02.3]} 14. c5 {[%clk 0:02:56]} 14...
Ng6 {[%clk 0:03:01.1]} 15. e4 {[%clk 0:02:55.5]} 15... Qe7 {[%clk 0:02:56.5]}
16. Rfe1 {[%clk 0:02:47.9]} 16... dxc5 {[%clk 0:02:51.6]} 17. bxc5 {[%clk
0:02:48]} 17... bxc5 {[%clk 0:02:52.4]} 18. d5 {[%clk 0:02:48.7]} 18... Nde5
{[%clk 0:02:49.6]} 19. Nxe5 {[%clk 0:02:46.7]} 19... Bxe5 {[%clk 0:02:50.6]} 20.
Na4 {[%clk 0:02:38.1]} 20... Bxb2 {[%clk 0:02:48.8]} 21. Nxb2 {[%clk 0:02:40]}
21... Rfd8 {[%clk 0:02:45.8]} 22. Nd3 {[%clk 0:02:40.5]} 22... c4 {[%clk
0:02:42.6]} 23. Qxc4 {[%clk 0:02:38.9]} 23... exd5 {[%clk 0:02:43.2]} 24. exd5
{[%clk 0:02:39.6]} 24... Qxa3 {[%clk 0:02:44.6]} 25. Nc5 {[%clk 0:02:30.5]}
25... Bc8 {[%clk 0:02:39.6]} 26. Ne4 {[%clk 0:02:08]} 26... Qb2 {[%clk
0:02:17.2]} 27. Qxc7 {[%clk 0:02:02.6]} 27... Bg4 {[%clk 0:02:17.5]} 28. Rb1
{[%clk 0:01:58.5]} 28... Qxb1 {[%clk 0:01:51.4]} 29. Rxb1 {[%clk 0:01:53.7]}
29... Rxb1+ {[%clk 0:01:52.4]} 30. Bf1 {[%clk 0:01:55.2]} 30... Rc8 {[%clk
0:01:53.4]} 31. Qa5 {[%clk 0:01:33.6]} 31... Bh3 {[%clk 0:01:51.7]} 32. Nd2
{[%clk 0:01:29.6]} 32... Rcc1 {[%clk 0:01:46.3]} 33. Qxa6 {[%clk 0:01:03.6]}
33... Rxf1+ {[%clk 0:01:46]} 34. Nxf1 {[%clk 0:01:02.3]} 34... Rxf1+ {[%clk
0:01:47.9]} 35. Qxf1 {[%clk 0:01:03.4]} 35... Bxf1 {[%clk 0:01:49.8]} 36. Kxf1
{[%clk 0:01:05.3]} 36... Kf8 {[%clk 0:01:50.6]} 37. Ke2 {[%clk 0:01:06.8]} 37...
Ke7 {[%clk 0:01:51.9]} 38. Ke3 {[%clk 0:01:08.7]} 38... Kd6 {[%clk 0:01:52.6]}
39. Ke4 {[%clk 0:01:10.4]} 39... Ne7 {[%clk 0:01:53.4]} 40. h4 {[%clk
0:01:08.1]} 40... f5+ {[%clk 0:01:51.9]} 41. Kd4 {[%clk 0:01:07.5]} 41... Nxd5
{[%clk 0:01:51.2]} 42. hxg5 {[%clk 0:01:09.1]} 42... hxg5 {[%clk 0:01:53.1]} 43.
g4 {[%clk 0:01:10.7]} 43... f4 {[%clk 0:01:52.3]} 44. Ke4 {[%clk 0:01:11.8]}
44... Ke6 {[%clk 0:01:53.6]} 45. f3 {[%clk 0:01:12.5]} 45... Nf6+ {[%clk
0:01:53.1]} 0-1

[Event "*** Titled Tuesday Blitz"]
[Site "Chess.com"]
[Date "2019.02.05"]
[Round "2"]
[White "champ2005"]
[Black "mouseWLZ"]
[Result "0-1"]
[WhiteElo "2590"]
[BlackElo "2434"]
[TimeControl "180+2"]
[EndTime "13:20:41 PST"]
[Termination "mouseWLZ won by resignation"]

1. e4 {[%clk 0:03:01.5]} 1... e6 {[%clk 0:03:01.1]} 2. d4 {[%clk 0:03:02.3]}
2... d5 {[%clk 0:03:02.2]} 3. Nc3 {[%clk 0:03:04]} 3... Nf6 {[%clk 0:03:02.4]}
4. Bg5 {[%clk 0:03:04.4]} 4... Bb4 {[%clk 0:03:02.9]} 5. e5 {[%clk 0:03:04.3]}
5... h6 {[%clk 0:03:03.6]} 6. Bd2 {[%clk 0:03:05.7]} 6... Bxc3 {[%clk
0:03:04.1]} 7. bxc3 {[%clk 0:03:07.6]} 7... Ne4 {[%clk 0:03:05.4]} 8. Qg4 {[%clk
0:03:08.2]} 8... Kf8 {[%clk 0:03:06.6]} 9. Bd3 {[%clk 0:03:08.5]} 9... Nxd2
{[%clk 0:03:07.8]} 10. Kxd2 {[%clk 0:03:10.4]} 10... c5 {[%clk 0:03:09.2]} 11.
Nf3 {[%clk 0:03:11.1]} 11... Nc6 {[%clk 0:03:10.1]} 12. dxc5 {[%clk 0:03:11.5]}
12... Qe7 {[%clk 0:03:04.7]} 13. Rhe1 {[%clk 0:03:07.7]} 13... Qxc5 {[%clk
0:03:05.4]} 14. Nd4 {[%clk 0:03:08.9]} 14... Bd7 {[%clk 0:03:03]} 15. Nxc6
{[%clk 0:03:08.9]} 15... bxc6 {[%clk 0:02:41.2]} 16. Qb4 {[%clk 0:03:08.6]}
16... Qxb4 {[%clk 0:02:38.3]} 17. cxb4 {[%clk 0:03:09.4]} 17... Ke7 {[%clk
0:02:39.9]} 18. Ke3 {[%clk 0:03:10.5]} 18... Rhb8 {[%clk 0:02:36.5]} 19. a3
{[%clk 0:03:08.5]} 19... a5 {[%clk 0:02:33.9]} 20. c3 {[%clk 0:03:09.6]} 20...
g5 {[%clk 0:01:47.7]} 21. Kd4 {[%clk 0:03:06.3]} 21... Kd8 {[%clk 0:01:41.2]}
22. Re3 {[%clk 0:03:03.4]} 22... axb4 {[%clk 0:01:38.4]} 23. cxb4 {[%clk
0:03:03.9]} 23... Rxb4+ {[%clk 0:01:39]} 24. axb4 {[%clk 0:03:05]} 24... Rxa1
{[%clk 0:01:39.8]} 25. Rh3 {[%clk 0:03:05.9]} 25... Ra2 {[%clk 0:01:32]} 26. Rf3
{[%clk 0:02:48.7]} 26... Ke7 {[%clk 0:01:32.1]} 27. Rf6 {[%clk 0:02:49.7]} 27...
Be8 {[%clk 0:01:19.6]} 28. g3 {[%clk 0:02:20.5]} 28... Bd7 {[%clk 0:01:03.9]}
29. g4 {[%clk 0:02:07.5]} 29... Be8 {[%clk 0:01:03.6]} 30. Ke3 {[%clk
0:02:07.6]} 30... Rb2 {[%clk 0:01:04.4]} 31. Rxh6 {[%clk 0:02:08.6]} 31... Rxb4
{[%clk 0:01:05.6]} 32. f3 {[%clk 0:02:08.7]} 32... c5 {[%clk 0:01:05.9]} 33. Rh5
{[%clk 0:02:05.1]} 33... d4+ {[%clk 0:01:06.8]} 34. Kd2 {[%clk 0:02:00.6]} 34...
c4 {[%clk 0:01:05.5]} 35. Bc2 {[%clk 0:02:01.6]} 35... c3+ {[%clk 0:00:50.1]}
36. Kc1 {[%clk 0:02:00.2]} 36... Bb5 {[%clk 0:00:51.1]} 37. Rxg5 {[%clk
0:01:52.5]} 37... d3 {[%clk 0:00:52.3]} 38. Bd1 {[%clk 0:01:54]} 38... Rb2
{[%clk 0:00:45.1]} 0-1